fUST/lending_fUST_20250206
["ID","MTS","AMOUNT","RATE_DAILY","PERIOD"]
[351819003,1738800646409,-151.0,0.000137,2]
[351819004,1738800646424,-151.0,0.000137,2]
[351819005,1738800646438,-165.17,0.000137,2]
[351819006,1738800646451,-165.17,0.000137,2]
[351819007,1738800646485,-165.17,0.000137,2]
[351819008,1738800646497,-165.17,0.000137,2]
[351819009,1738800646509,-165.17,0.000137,2]
[351819010,1738800646521,-151.0,0.000138,2]
[351819011,1738800646533,-151.0,0.000138,2]
[351819012,1738800646545,-151.0,0.000138,2]
[351819013,1738800646556,-151.0,0.000138,2]
[351819014,1738800646569,-151.0,0.000138,2]
[351819015,1738800646580,-584.90785736,0.00013835,2]
[351819016,1738800646592,-187.48596558,0.00013835,2]
[351819017,1738800646603,-273.16598532,0.00013835,2]
[351819018,1738800646616,-500.0,0.00013835,2]
[351819019,1738800646628,-500.0,0.00013835,2]
[351819020,1738800646642,-500.0,0.00013835,2]
[351819021,1738800646653,-500.0,0.00013835,2]
[351819022,1738800646665,-323.86378329,0.00013835,2]
[351819023,1738800646678,-899.57,0.00013835,2]
[351819024,1738800646690,-500.0,0.00013835,2]
[351819025,1738800646702,-658.38,0.00013835,2]
[351819026,1738800646714,-634.75,0.00013835,2]
[351819027,1738800646726,-526.66492609,0.00013835,2]
[351819028,1738800646738,-500.0,0.00013835,2]
[351819029,1738800646750,-500.0,0.00013835,2]
[351819030,1738800646764,-587.49,0.00013835,2]
[351819031,1738800646775,-500.0,0.00013835,2]
[351819032,1738800646787,-500.0,0.00013835,2]
[351819033,1738800646799,-503.29,0.00013835,2]
[351819034,1738800646808,-216.85421115,0.00013835,2]
[351819035,1738800646818,-536.31,0.00013835,2]
[351819036,1738800646829,-500.0,0.00013835,2]
[351819037,1738800646838,-740.19,0.00013835,2]
[351819038,1738800646849,-500.0,0.00013835,2]
[351819039,1738800647022,-500.0,0.00013835,2]
[351819040,1738800647108,-500.0,0.00013835,2]
[351819041,1738800647124,-1238.77,0.00013835,2]
[351819042,1738800647135,-1000.0,0.00013835,2]
[351819043,1738800647146,-500.0,0.00013835,2]
[351819044,1738800647156,-581.39,0.00013835,2]
[351819045,1738800647166,-595.88,0.00013835,2]
[351819046,1738800647176,-1003.19,0.00013835,2]
[351819047,1738800647187,-500.0,0.00013835,2]
[351819048,1738800647199,-500.0,0.00013835,2]
[351819049,1738800647209,-500.0,0.00013835,2]
[351819050,1738800647219,-500.0,0.00013835,2]
[351819051,1738800647230,-500.0,0.00013835,2]
[351819052,1738800647240,-726.75,0.00013835,2]
[351819053,1738800647249,-198.34818467,0.00013835,2]
[351819054,1738800647259,-500.0,0.00013835,2]
[351819055,1738800647269,-500.0,0.00013835,2]
[351819056,1738800647279,-500.0,0.00013835,2]
[351819057,1738800647289,-500.0,0.00013835,2]
[351819058,1738800647299,-500.0,0.00013835,2]
[351819059,1738800647309,-500.0,0.00013835,2]
[351819060,1738800647319,-500.0,0.00013835,2]
[351819061,1738800647328,-500.0,0.00013835,2]
[351819062,1738800647337,-500.0,0.00013835,2]
[351819063,1738800647346,-500.0,0.00013835,2]
[351819064,1738800647355,-528.8340969,0.00013835,2]
[351819065,1738800647364,-500.0,0.00013835,2]
[351819066,1738800647374,-615.88,0.00013835,2]
[351819067,1738800647384,-478.12484103,0.00013835,2]
[351819068,1738800647395,-512.82,0.00013835,2]
[351819069,1738800647404,-500.0,0.00013835,2]
[351819070,1738800647414,-500.0,0.00013835,2]
[351819071,1738800647425,-1181.43,0.00013835,2]
[351819072,1738800647435,-630.89,0.00013835,2]
[351819073,1738800647445,-500.0,0.00013835,2]
[351819074,1738800647455,-1000.0,0.00013835,2]
[351819075,1738800647465,-500.0,0.00013835,2]
[351819076,1738800647474,-843.43,0.00013835,2]
[351819077,1738800647483,-500.0,0.00013835,2]
[351819078,1738800647493,-500.0,0.00013835,2]
[351819079,1738800647502,-500.0,0.00013835,2]
[351819080,1738800647512,-707.62,0.00013835,2]
[351819081,1738800647522,-500.0,0.00013835,2]
[351819082,1738800647533,-500.0,0.00013835,2]
[351819083,1738800647542,-500.0,0.00013835,2]
[351819084,1738800647552,-528.88,0.00013835,2]
[351819085,1738800647561,-500.0,0.00013835,2]
[351819086,1738800647571,-500.0,0.00013835,2]
[351819087,1738800647580,-500.0,0.00013835,2]
[351819088,1738800647590,-1320.14,0.00013835,2]
[351819089,1738800647600,-500.0,0.00013835,2]
[351819090,1738800647609,-500.0,0.00013835,2]
[351819091,1738800647619,-500.0,0.00013835,2]
[351819092,1738800647629,-561.55,0.00013835,2]
[351819093,1738800647640,-500.0,0.00013835,2]
[351819094,1738800647649,-500.0,0.00013835,2]
[351819095,1738800647658,-709.24,0.00013835,2]
[351819096,1738800647668,-500.0,0.00013835,2]
[351819097,1738800647677,-500.0,0.00013835,2]
[351819098,1738800647687,-531.33,0.00013835,2]
[351819099,1738800647698,-500.0,0.00013835,2]
[351819100,1738800647709,-500.0,0.00013835,2]
[351819101,1738800647720,-500.0,0.00013835,2]
[351819102,1738800647730,-1637.55,0.00013835,2]
[351819103,1738800647740,-500.0,0.00013835,2]
[351819104,1738800647750,-519.32,0.00013835,2]
[351819105,1738800647759,-500.0,0.00013835,2]
[351819106,1738800647772,-500.0,0.00013835,2]
[351819107,1738800647781,-500.0,0.00013835,2]
[351819108,1738800647790,-500.0,0.00013835,2]
[351819109,1738800647799,-1542.65,0.00013835,2]
[351819110,1738800647810,-500.0,0.00013835,2]
[351819111,1738800647820,-580.82237321,0.00013835,2]
[351819112,1738800647829,-500.0,0.00013835,2]
[351819113,1738800647838,-999.32,0.00013835,2]
[351819114,1738800647849,-501.84965997,0.00013835,2]
[351819115,1738800647858,-500.0,0.00013835,2]
[351819116,1738800647868,-500.0,0.00013835,2]
[351819117,1738800647877,-1057.63,0.00013835,2]
[351819118,1738800647889,-521.62,0.00013835,2]
[351819119,1738800647898,-500.0,0.00013835,2]
[351819120,1738800647908,-680.95,0.00013835,2]
[351819121,1738800647917,-500.0,0.00013835,2]
[351819122,1738800647926,-1312.89,0.00013835,2]
[351819123,1738800647936,-500.0,0.00013835,2]
[351819124,1738800647945,-547.12,0.00013835,2]
[351819125,1738800647955,-500.0,0.00013835,2]
[351819126,1738800647965,-503.42511213,0.00013835,2]
[351819127,1738800647975,-500.0,0.00013835,2]
[351819128,1738800647984,-500.0,0.00013835,2]
[351819129,1738800647994,-676.12,0.00013835,2]
[351819130,1738800648004,-500.0,0.00013835,2]
[351819131,1738800648014,-654.64,0.00013835,2]
[351819132,1738800648023,-779.68,0.00013835,2]
[351819133,1738800648038,-500.0,0.00013835,2]
[351819134,1738800648048,-500.0,0.00013835,2]
[351819135,1738800648057,-500.0,0.00013835,2]
[351819136,1738800648067,-500.0,0.00013835,2]
[351819137,1738800648079,-1109.39,0.00013835,2]
[351819138,1738800648094,-500.0,0.00013835,2]
[351819139,1738800648108,-500.0,0.00013835,2]
[351819140,1738800648118,-501.55642339,0.00013835,2]
[351819141,1738800648128,-500.0,0.00013835,2]
[351819142,1738800648140,-500.0,0.00013835,2]
[351819143,1738800648151,-624.6,0.00013835,2]
[351819144,1738800648162,-500.0,0.00013835,2]
[351819145,1738800648172,-500.0,0.00013835,2]
[351819146,1738800648183,-500.0,0.00013835,2]
[351819147,1738800648193,-271.21503122,0.00013835,2]
[351819148,1738800648203,-658.65,0.00013835,2]
[351819149,1738800648213,-885.54,0.00013835,2]
[351819150,1738800648224,-500.0,0.00013835,2]
[351819151,1738800648234,-500.0,0.00013835,2]
[351819152,1738800648246,-928.77,0.00013835,2]
[351819153,1738800648256,-500.0,0.00013835,2]
[351819154,1738800648269,-500.0,0.00013835,2]
[351819155,1738800648281,-500.0,0.00013835,2]
[351819156,1738800648291,-500.0,0.00013835,2]
[351819157,1738800648303,-500.0,0.00013835,2]
[351819158,1738800648313,-500.0,0.00013835,2]
[351819159,1738800648324,-526.06,0.00013835,2]
[351819160,1738800648335,-736.57,0.00013835,2]
[351819161,1738800648345,-500.0,0.00013835,2]
[351819162,1738800648356,-500.0,0.00013835,2]
[351819163,1738800648366,-500.0,0.00013835,2]
[351819164,1738800648377,-1704.64,0.00013835,2]
[351819165,1738800648387,-500.0,0.00013835,2]
[351819166,1738800648397,-500.0,0.00013835,2]
[351819167,1738800648407,-500.0,0.00013835,2]
[351819168,1738800648417,-500.0,0.00013835,2]
[351819169,1738800648428,-2644.5,0.00013835,2]
[351819170,1738800648439,-500.0,0.00013835,2]
[351819171,1738800648449,-500.0,0.00013835,2]
[351819172,1738800648458,-500.0,0.00013835,2]
[351819173,1738800648468,-613.14,0.00013835,2]
[351819174,1738800648478,-500.0,0.00013835,2]
[351819175,1738800648487,-500.0,0.00013835,2]
[351819176,1738800648497,-1246.72,0.00013835,2]
[351819177,1738800648507,-500.0,0.00013835,2]
[351819178,1738800648517,-500.0,0.00013835,2]
[351819179,1738800648527,-500.0,0.00013835,2]
[351819180,1738800648536,-2406.45,0.00013835,2]
[351819181,1738800648546,-500.0,0.00013835,2]
[351819182,1738800648555,-500.0,0.00013835,2]
[351819183,1738800648565,-1022.7,0.00013835,2]
[351819184,1738800648575,-500.0,0.00013835,2]
[351819185,1738800648585,-398.76486589,0.00013835,2]
[351819186,1738800648596,-500.0,0.00013835,2]
[351819187,1738800648606,-230.18554724,0.00013835,2]
[351819188,1738800648617,-500.0,0.00013835,2]
[351819189,1738800648627,-500.0,0.00013835,2]
[351819190,1738800648639,-500.0,0.00013835,2]
[351819191,1738800648650,-553.37,0.00013835,2]
[351819192,1738800648659,-350.33110555,0.00013835,2]
[351819193,1738800648670,-500.0,0.00013835,2]
[351819194,1738800648681,-500.0,0.00013835,2]
[351819195,1738800648692,-500.0,0.00013835,2]
[351819196,1738800648703,-500.0,0.00013835,2]
[351819197,1738800648713,-500.0,0.00013835,2]
[351819198,1738800648723,-500.0,0.00013835,2]
[351819199,1738800648733,-500.0,0.00013835,2]
[351819200,1738800648745,-500.0,0.00013835,2]
[351819201,1738800648755,-500.0,0.00013835,2]
[351819202,1738800648770,-1077.24,0.00013835,2]
[351819203,1738800648781,-897.12,0.00013835,2]
[351819204,1738800648791,-379.45244797,0.00013835,2]
[351819205,1738800648801,-500.0,0.00013835,2]
[351819206,1738800648812,-513.84,0.00013835,2]
[351819207,1738800648822,-500.0,0.00013835,2]
[351819208,1738800648832,-500.0,0.00013835,2]
[351819209,1738800648844,-500.0,0.00013835,2]
[351819210,1738800648854,-500.0,0.00013835,2]
[351819211,1738800648865,-500.0,0.00013835,2]
[351819212,1738800648875,-500.0,0.00013835,2]
[351819213,1738800648888,-500.0,0.00013835,2]
[351819214,1738800648897,-579.44,0.00013835,2]
[351819215,1738800648909,-500.0,0.00013835,2]
[351819216,1738800648920,-500.0,0.00013835,2]
[351819217,1738800648933,-543.99,0.00013835,2]
[351819218,1738800648945,-639.99,0.00013835,2]
[351819219,1738800648955,-1442.83,0.00013835,2]
[351819220,1738800648966,-500.0,0.00013835,2]
[351819221,1738800648977,-551.42,0.00013835,2]
[351819222,1738800648989,-500.0,0.00013835,2]
[351819223,1738800648999,-717.31,0.00013835,2]
[351819224,1738800649010,-533.58,0.00013835,2]
[351819225,1738800649022,-1284.16,0.00013835,2]
[351819226,1738800649033,-500.0,0.00013835,2]
[351819227,1738800649044,-719.0,0.00013835,2]
[351819228,1738800649054,-1411.9,0.00013835,2]
[351819229,1738800649066,-500.0,0.00013835,2]
[351819230,1738800649076,-1654.34,0.00013835,2]
[351819231,1738800649087,-500.0,0.00013835,2]
[351819232,1738800649098,-500.0,0.00013835,2]
[351819233,1738800649109,-500.0,0.00013835,2]
[351819234,1738800649120,-3059.94,0.00013835,2]
[351819235,1738800649131,-640.78,0.00013835,2]
[351819236,1738800649145,-607.36,0.00013835,2]
[351819237,1738800649156,-500.0,0.00013835,2]
[351819238,1738800649167,-500.0,0.00013835,2]
[351819239,1738800649177,-500.0,0.00013835,2]
[351819240,1738800649188,-500.0,0.00013835,2]
[351819241,1738800649198,-500.0,0.00013835,2]
[351819242,1738800649209,-162.84651182,0.00013835,2]
[351819243,1738800649219,-500.0,0.00013835,2]
[351819244,1738800649229,-1229.35,0.00013835,2]
[351819245,1738800649240,-780.32,0.00013835,2]
[351819246,1738800649250,-736.14,0.00013835,2]
[351819247,1738800649261,-500.0,0.00013835,2]
[351819248,1738800649270,-500.0,0.00013835,2]
[351819249,1738800649280,-500.0,0.00013835,2]
[351819250,1738800649290,-151.0,0.00013835,2]
[351819251,1738800649301,-500.0,0.00013835,2]
[351819252,1738800649311,-500.0,0.00013835,2]
[351819253,1738800649321,-500.0,0.00013835,2]
[351819254,1738800649331,-500.0,0.00013835,2]
[351819255,1738800649342,-151.0,0.00013835,2]
[351819256,1738800649351,-2499.31,0.00013835,2]
[351819257,1738800649362,-151.0,0.00013835,2]
[351819258,1738800649372,-727.89,0.00013835,2]
[351819259,1738800649382,-500.0,0.00013835,2]
[351819260,1738800649392,-907.13,0.00013835,2]
[351819261,1738800649402,-817.89,0.00013835,2]
[351819262,1738800649413,-500.0,0.00013835,2]
[351819263,1738800649423,-500.0,0.00013835,2]
[351819264,1738800649433,-504.39,0.00013835,2]
[351819265,1738800649443,-500.0,0.00013835,2]
[351819266,1738800649454,-576.69,0.00013835,2]
[351819267,1738800649464,-500.0,0.00013835,2]
[351819268,1738800649475,-151.0,0.00013835,2]
[351819269,1738800649484,-570.27,0.00013835,2]
[351819270,1738800649495,-500.0,0.00013835,2]
[351819271,1738800649506,-524.36,0.00013835,2]
[351819272,1738800649516,-151.0,0.00013835,2]
[351819273,1738800649526,-2232.25,0.00013835,2]
[351819274,1738800649536,-500.0,0.00013835,2]
[351819275,1738800649547,-153.324186,0.00013835,2]
[351819276,1738800649556,-500.0,0.00013835,2]
[351819277,1738800649566,-500.0,0.00013835,2]
[351819278,1738800649576,-518.02,0.00013835,2]
[351819279,1738800649585,-151.0,0.00013835,2]
[351819280,1738800649597,-500.0,0.00013835,2]
[351819281,1738800649607,-151.0,0.00013835,2]
[351819282,1738800649616,-832.56,0.00013835,2]
[351819283,1738800649625,-151.0,0.00013835,2]
[351819284,1738800649634,-500.0,0.00013835,2]
[351819285,1738800649645,-500.0,0.00013835,2]
[351819286,1738800649655,-500.0,0.00013835,2]
[351819287,1738800649665,-500.0,0.00013835,2]
[351819288,1738800649675,-500.0,0.00013835,2]
[351819289,1738800649686,-500.0,0.00013835,2]
[351819290,1738800649699,-500.0,0.00013835,2]
[351819291,1738800649709,-7529.51,0.00013835,2]
[351819292,1738800649719,-169.99447994,0.00013835,2]
[351819293,1738800649728,-500.0,0.00013835,2]
[351819294,1738800649737,-500.0,0.00013835,2]
[351819295,1738800649748,-151.0,0.00013835,2]
[351819296,1738800649759,-949.41,0.00013835,2]
[351819297,1738800649772,-500.0,0.00013835,2]
[351819298,1738800649781,-500.0,0.00013835,2]
[351819299,1738800649792,-1095.18,0.00013835,2]
[351819300,1738800649802,-4757.93,0.00013835,2]
[351819301,1738800649812,-4947.19,0.00013835,2]
[351819302,1738800649821,-583.52863974,0.00013835,2]
[351819303,1738800649833,-500.0,0.00013835,2]
[351819304,1738800649845,-2120.69,0.00013835,2]
[351819305,1738800649857,-2256.07,0.00013835,2]
[351819306,1738800649866,-914.17,0.00013835,2]
[351819307,1738800649876,-500.0,0.00013835,2]
[351819308,1738800649887,-151.0,0.00013835,2]
[351819309,1738800649897,-1354.82,0.00013835,2]
[351819310,1738800649907,-34091.8,0.00013835,2]
[351819311,1738800649917,-151.0,0.00013835,2]
[351819312,1738800649926,-500.0,0.00013835,2]
[351819313,1738800649936,-500.0,0.00013835,2]
[351819314,1738800649947,-1313.44,0.00013835,2]
[351819315,1738800649957,-152.675225,0.00013835,2]
[351819316,1738800649967,-1847.72,0.00013835,2]
[351819317,1738800649976,-910.48,0.00013835,2]
[351819318,1738800649987,-500.0,0.00013835,2]
[351819319,1738800649997,-500.0,0.00013835,2]
[351819320,1738800650007,-500.0,0.00013835,2]
[351819321,1738800650017,-4136.54,0.00013835,2]
[351819322,1738800650027,-500.0,0.00013835,2]
[351819323,1738800650039,-465.97352666,0.00013835,2]
[351819324,1738800650049,-500.0,0.00013835,2]
[351819325,1738800650059,-623.79,0.00013835,2]
[351819326,1738800650070,-500.0,0.00013835,2]
[351819327,1738800650081,-788.4,0.00013835,2]
[351819328,1738800650091,-500.0,0.00013835,2]
[351819329,1738800650101,-500.0,0.00013835,2]
[351819330,1738800650112,-540.18,0.00013835,2]
[351819331,1738800650122,-6480.41,0.00013835,2]
[351819332,1738800650132,-500.0,0.00013835,2]
[351819333,1738800650144,-743.8,0.00013835,2]
[351819334,1738800650155,-500.0,0.00013835,2]
[351819335,1738800650165,-500.0,0.00013835,2]
[351819336,1738800650175,-2208.22,0.00013835,2]
[351819337,1738800650185,-500.0,0.00013835,2]
[351819338,1738800650196,-576.98,0.00013835,2]
[351819339,1738800650205,-151.0,0.00013835,2]
[351819340,1738800650215,-1288.95,0.00013835,2]
[351819341,1738800650225,-151.0,0.00013835,2]
[351819342,1738800650234,-500.0,0.00013835,2]
[351819343,1738800650244,-500.0,0.00013835,2]
[351819344,1738800650254,-151.0,0.00013835,2]
[351819345,1738800650263,-151.0,0.00013835,2]
[351819346,1738800650273,-2254.69,0.00013835,2]
[351819347,1738800650283,-500.0,0.00013835,2]
[351819348,1738800650292,-500.0,0.00013835,2]
[351819349,1738800650302,-500.0,0.00013835,2]
[351819350,1738800650313,-154.119608,0.00013835,2]
[351819351,1738800650467,-2165.79,0.00013835,2]
[351819352,1738800650477,-500.0,0.00013835,2]
[351819353,1738800650487,-500.0,0.00013835,2]
[351819354,1738800650497,-247.035217,0.00013835,2]
[351819355,1738800650506,-500.0,0.00013835,2]
[351819356,1738800650516,-500.0,0.00013835,2]
[351819357,1738800650526,-810.05,0.00013835,2]
[351819358,1738800650536,-500.0,0.00013835,2]
[351819359,1738800650545,-151.0,0.00013835,2]
[351819360,1738800650555,-5282.74,0.00013835,2]
[351819361,1738800650566,-502.68,0.00013835,2]
[351819362,1738800650575,-503.48,0.00013835,2]
[351819363,1738800650585,-500.0,0.00013835,2]
[351819364,1738800650595,-925.36,0.00013835,2]
[351819365,1738800650605,-500.0,0.00013835,2]
[351819366,1738800650615,-10224.73,0.00013835,2]
[351819367,1738800650625,-500.0,0.00013835,2]
[351819368,1738800650635,-1237.0,0.00013835,2]
[351819369,1738800650647,-2187.08,0.00013835,2]
[351819370,1738800650657,-4235.83,0.00013835,2]
[351819371,1738800650668,-500.0,0.00013835,2]
[351819372,1738800650678,-500.0,0.00013835,2]
[351819373,1738800650688,-500.0,0.00013835,2]
[351819374,1738800650699,-500.0,0.00013835,2]
[351819375,1738800650709,-500.0,0.00013835,2]
[351819376,1738800650718,-542.95,0.00013835,2]
[351819377,1738800650730,-500.0,0.00013835,2]
[351819378,1738800650740,-500.0,0.00013835,2]
[351819379,1738800650750,-534.73,0.00013835,2]
[351819380,1738800650764,-90073.3,0.00013835,2]
[351819381,1738800650774,-500.0,0.00013835,2]
[351819382,1738800650784,-1626.15,0.00013835,2]
[351819383,1738800650795,-637.59028457,0.00013835,2]
[351819384,1738800650806,-2543.19,0.00013835,2]
[351819385,1738800650816,-29793.1,0.00013835,2]
[351819386,1738800650826,-500.0,0.00013835,2]
[351819387,1738800650835,-530.65,0.00013835,2]
[351819388,1738800650848,-500.0,0.00013835,2]
[351819389,1738800650858,-4125.25,0.00013835,2]
[351819390,1738800650868,-151.0,0.00013835,2]
[351819391,1738800650878,-500.0,0.00013835,2]
[351819392,1738800650889,-500.0,0.00013835,2]
[351819393,1738800650900,-2219.08,0.00013835,2]
[351819394,1738800650910,-500.0,0.00013835,2]
[351819395,1738800650919,-2555.32,0.00013835,2]
[351819396,1738800650930,-633.25,0.00013835,2]
[351819397,1738800650940,-500.0,0.00013835,2]
[351819398,1738800650950,-2668.67,0.00013835,2]
[351819399,1738800650961,-793.28,0.00013835,2]
[351819400,1738800650971,-6207.06,0.00013835,2]
[351819401,1738800650981,-632.52,0.00013835,2]
[351819402,1738800650991,-803.45,0.00013835,2]
[351819403,1738800651001,-151.0,0.00013835,2]
[351819404,1738800651011,-500.0,0.00013835,2]
[351819405,1738800651021,-500.0,0.00013835,2]
[351819406,1738800651031,-1078.46,0.00013835,2]
[351819407,1738800651041,-561.31,0.00013835,2]
[351819408,1738800651051,-500.0,0.00013835,2]
[351819409,1738800651061,-500.0,0.00013835,2]
[351819410,1738800651072,-151.0,0.00013835,2]
[351819411,1738800651082,-3224.33,0.00013835,2]
[351819412,1738800651092,-151.0,0.00013835,2]
[351819413,1738800651102,-151.0,0.00013835,2]
[351819414,1738800651112,-522.25,0.00013835,2]
[351819415,1738800651122,-2402.16,0.00013835,2]
[351819416,1738800651131,-500.0,0.00013835,2]
[351819417,1738800651142,-620.88,0.00013835,2]
[351819418,1738800651152,-7056.17,0.00013835,2]
[351819419,1738800651163,-500.0,0.00013835,2]
[351819420,1738800651174,-500.0,0.00013835,2]
[351819421,1738800651184,-500.0,0.00013835,2]
[351819422,1738800651195,-500.0,0.00013835,2]
[351819423,1738800651212,-500.0,0.00013835,2]
[351819424,1738800651222,-912.1,0.00013835,2]
[351819425,1738800651231,-500.0,0.00013835,2]
[351819426,1738800651241,-500.0,0.00013835,2]
[351819427,1738800651252,-1102.11,0.00013835,2]
[351819428,1738800651262,-2352.78,0.00013835,2]
[351819429,1738800651273,-500.0,0.00013835,2]
[351819430,1738800651283,-151.0,0.00013835,2]
[351819431,1738800651294,-500.0,0.00013835,2]
[351819432,1738800651304,-500.0,0.00013835,2]
[351819433,1738800651314,-500.0,0.00013835,2]
[351819434,1738800651324,-151.0,0.00013835,2]
[351819435,1738800651334,-500.0,0.00013835,2]
[351819436,1738800651344,-621.19,0.00013835,2]
[351819437,1738800651355,-500.0,0.00013835,2]
[351819438,1738800651364,-500.0,0.00013835,2]
[351819439,1738800651374,-660.26,0.00013835,2]
[351819440,1738800651384,-151.0,0.00013835,2]
[351819441,1738800651395,-505.87,0.00013835,2]
[351819442,1738800651405,-3432.9,0.00013835,2]
[351819443,1738800651415,-500.0,0.00013835,2]
[351819444,1738800651425,-500.0,0.00013835,2]
[351819445,1738800651435,-500.0,0.00013835,2]
[351819446,1738800651445,-500.0,0.00013835,2]
[351819447,1738800651456,-11477.77,0.00013835,2]
[351819448,1738800651467,-370.15230238,0.0001387,2]
[351819449,1738800651476,-500.0,0.00013873,2]
[351819450,1738800651486,-12262.63855632,0.00013884,2]
[351819451,1738800651496,-4968.20641107,0.000139,2]
[351819452,1738800651505,-151.0,0.000139,2]
[351819453,1738800651516,-151.0,0.000139,2]
[351819454,1738800651526,-151.0,0.000139,2]
[351819455,1738800651535,-151.0,0.000139,2]
[351819456,1738800651545,-7180.61704802,0.00013965,2]
[351819457,1738800651801,-12469.7098653,0.00013965,2]
[351819458,1738800692502,160.0,0.00017461,120]
[351819459,1738800811871,160.0,0.00018916,120]
[351819461,1738800871308,160.0,0.00019233,120]
[351819465,1738801051395,160.0,0.00018384,120]
[351819466,1738801111873,160.0,0.00017885,120]
[351819467,1738801171376,160.0,0.00017664,120]
[351819468,1738801470759,160.0,0.00017538,120]
[351819469,1738801531330,160.0,0.00017248,120]
[351819472,1738801637111,-300.0,0.00013382,2]
[351819473,1738801637136,-500.0,0.00013383,2]
[351819474,1738801637158,-500.0,0.00013383,2]
[351819475,1738801637181,-500.0,0.00013383,2]
[351819476,1738801637205,-500.0,0.00013383,2]
[351819477,1738801637227,-500.0,0.00013383,2]
[351819478,1738801637249,-500.0,0.00013383,2]
[351819479,1738801637271,-500.0,0.00013383,2]
[351819480,1738801637294,-195.73,0.00013383,2]
[351819481,1738801637316,-214.756,0.00013424,2]
[351819482,1738801637337,-1691.50500207,0.00013598,2]
[351819483,1738801637362,-158.531,0.0001366,2]
[351819484,1738801637383,-12502.07957305,0.00013689,2]
[351819485,1738801637405,-152.0,0.00013696,2]
[351819486,1738801637427,-500.0,0.00013697,2]
[351819487,1738801637448,-500.0,0.00013697,2]
[351819488,1738801637473,-500.0,0.00013697,2]
[351819489,1738801637496,-500.0,0.00013697,2]
[351819490,1738801637518,-252.01397336,0.00013697,2]
[351819491,1738801637539,-500.0,0.00013697,2]
[351819492,1738801637560,-500.0,0.00013697,2]
[351819493,1738801637583,-500.0,0.00013697,2]
[351819494,1738801637605,-512.04755655,0.00013697,2]
[351819495,1738801637629,-500.0,0.00013697,2]
[351819496,1738801637650,-500.0,0.00013697,2]
[351819497,1738801637671,-500.0,0.00013697,2]
[351819498,1738801637693,-500.0,0.00013697,2]
[351819499,1738801637715,-500.0,0.00013697,2]
[351819500,1738801637738,-500.0,0.00013697,2]
[351819501,1738801637761,-289.49015891,0.00013697,2]
[351819502,1738801637785,-500.0,0.00013697,2]
[351819503,1738801637807,-500.0,0.00013697,2]
[351819504,1738801637830,-500.0,0.00013697,2]
[351819505,1738801637853,-500.0,0.00013697,2]
[351819506,1738801637874,-306.90425804,0.00013697,2]
[351819507,1738801637896,-500.0,0.00013697,2]
[351819508,1738801637919,-500.0,0.00013697,2]